Cogmind - Beta 14 @@@ ROGUE MODE // 2024.08.20 @ 16:36:05 Player: Compilatron Result: Destroyed by VS-3DD(R) with Subdweller Shrapnel Launcher Performance ------------- Evolutions (0) 0 Regions Visited (2) 400 Robots Destroyed (16) 80 Value Destroyed (381) 381 Prototype IDs (0) 0 Alien Tech Used (0) 0 Bonus (0) 0 TOTAL SCORE: 861 Bonus ------- None Cogmind --------- Core Integrity 0/250 Matter 280/300 Energy 100/100 System Corruption 0% Temperature Cool (0) Movement Rolling (100) Location -10/Subcaves Parts ------- > --- POWER (1) -------- (None) > --- PROPULSION (2) --- Light Treads Compact Wheel > --- UTILITY (2) ------ Medium Storage Unit Signal Interpreter > --- WEAPON (2) ------- (None) > --- INVENTORY (10) --- Ion Engine Light Treads Flight Unit Flight Unit Large Storage Unit Large Matter Pod (34) Sensor Array Peak State ------------ > --- POWER ------------ Ion Engine > --- PROPULSION ------- Aluminum Leg Aluminum Leg > --- UTILITY ---------- Medium Storage Unit Signal Interpreter > --- WEAPON ----------- Medium Laser Assault Rifle > --- INVENTORY -------- Ion Engine Light Ion Engine Light Treads Light Treads Compact Wheel Flight Unit Flight Unit Large Storage Unit Sensor Array EM Pulse Gun [Rating: 8] Favorites ----------- Power Ion Engine Engine Ion Engine Propulsion Aluminum Leg Treads Light Treads Leg Aluminum Leg Wheel Compact Wheel Utility Signal Interpreter Storage Medium Storage Unit Processor Signal Interpreter Weapon Medium Laser Energy Gun Medium Laser Ballistic Gun Assault Rifle Build | -11 -10 -10 ------- Run | Yrd Mat Sub Slots Evolved . | . . . Power . | . . . Propulsion . | . . . Utility . | . . . Weapon . | . . . Parts Attached 15 | . 12 3 Power 1 | . 1 . Engine 1 | . 1 . Core . | . . . Reactor . | . . . Propulsion 8 | . 6 2 Treads 3 | . 2 1 Leg 4 | . 4 . Wheel 1 | . . 1 Hover . | . . . Flight . | . . . Utility 5 | . 5 . Device . | . . . Storage 4 | . 4 . Processor 1 | . 1 . Hackware . | . . . Protection . | . . . Artifact . | . . . Weapon 1 | . . 1 Energy Gun 1 | . . 1 Energy Cannon . | . . . Ballistic Gun . | . . . Ballistic Cannon . | . . . Launcher . | . . . Special Weapon . | . . . Impact Weapon . | . . . Slashing Weapon . | . . . Piercing Weapon . | . . . Special Melee Weapon . | . . . Unidentified Prototypes . | . . . Parts Lost 6 | . . 6 Power 1 | . . 1 Propulsion 2 | . . 2 Utility . | . . . Weapon 3 | . . 3 Highest Loss Streak 6 | . . 6 To Critical Strikes . | . . . Average Slot Usage (%) 93 | . 97 68 Engine 12 | . 14 4 Treads 1 | . . 7 Leg 25 | . 27 12 Storage 13 | . 13 14 Processor 11 | . 11 14 Energy Gun 12 | . 14 4 Ballistic Gun 12 | . 14 2 Peak Build Rating 8 | 6 8 8 Average Rating 6 | 6 7 4 On Entrance 6 | 6 6 8 Naked Turns . | . . . Heaviest Build 149 | 14 149 19 Greatest Support 40 | 20 40 20 Greatest Overweight (x) 3 | . 3 . Average Overweight (x) . | . . . Largest Inventory Capacity 30 | 8 30 10 Average Capacity 9 | 8 9 10 Most Carried 10 | 6 10 10 Average Carried 8 | 6 8 8 Final Capacity 10 | 8 10 10 Final Carried 10 | 6 10 7 Class Distribution -------------------- 100% | Mutant Dominant Class ---------------- Mutant | -10/Materials Mutant | -10/Subcaves Resources | -11 -10 -10 ----------- Run | Yrd Mat Sub Matter Collected 496 | 200 296 . Remotely . | . . . Salvage Created 505 | . 459 46 Parts 36 | . 33 3 Haulers Intercepted 1 | . 1 . Recyclers Shooed . | . . . Parts Field Recycled . | . . . Retrieved Matter . | . . . Parts Self-Destructed 14 | . . 14 Prevented . | . . . Kills | -11 -10 -10 ------- Run | Yrd Mat Sub Combat Hostiles Destroyed 12 | . 11 1 Guns 12 | . 11 1 Classes Destroyed 5 | . 4 1 Hauler 1 | . 1 . Watcher 3 | . 3 . Swarmer 4 | . 4 . Grunt 7 | . 7 . Subdweller 1 | . . 1 Best Kill Streak 2 | . 2 1 Combat Bots Only 2 | . 2 1 Max Kills in Single Turn 2 | . 2 1 Gunslinging . | . . . Exploded . | . . . Melee . | . . . Uniques/NPCs Destroyed . | . . . Combat | -11 -10 -10 -------- Run | Yrd Mat Sub Hostile Shots Fired 117 | . 69 48 Missed 40 | . 27 13 Damage Taken 1214 | . 468 746 Core 260 | . 91 169 Absorbed by Shields . | . . . Core Remaining (%) 100 | 100 . . Volleys Fired 64 | . 51 13 Largest 2 | . 2 2 Hottest 90 | . 70 90 Shots Fired 118 | . 102 16 Gun 118 | . 102 16 Cannon . | . . . Launcher . | . . . Special . | . . . Kinetic 54 | . 51 3 Thermal 56 | . 51 5 Explosive . | . . . Electromagnetic 8 | . . 8 Robot Hit Streak 8 | . 8 6 Robot Miss Streak 5 | . 5 1 Penetration Max . | . . . Secondary Targets . | . . . Shots Hit Robots 73 | . 61 12 Core Hits 27 | . 23 4 Critical Kills . | . . . Critical Parts Destroyed . | . . . Critical Strikes 7 | . 6 1 Burn 7 | . 6 1 Melee Attacks . | . . . Impact . | . . . Slashing . | . . . Piercing . | . . . Sneak Attacks . | . . . Combat Hostiles . | . . . Follow-up Attacks . | . . . Damage Inflicted 1014 | . 874 140 Guns 1014 | . 874 140 Cannons . | . . . Explosions . | . . . Melee . | . . . Ramming . | . . . Kinetic 508 | . 496 12 Thermal 441 | . 378 63 Explosive . | . . . Electromagnetic 65 | . . 65 Impact . | . . . Slashing . | . . . Piercing . | . . . Highest Corruption . | . . . Average Corruption . | . . . Corruption Purged . | . . . Corruption Blocked . | . . . Overload Shots . | . . . Overflow Damage . | . . . Projectiles . | . . . Explosions . | . . . Melee . | . . . Knockbacks . | . . . Impact . | . . . Kinetic . | . . . Secondary . | . . . Self-Inflicted Damage . | . . . Shots . | . . . Rammed . | . . . Targets Rammed . | . . . Kicked . | . . . Crushed . | . . . Highest Temperature 304 | . 304 . Average Temperature 83 | . 83 . Received Heat Transfer 339 | . 210 129 Siege Activations . | . . . Robots Corrupted . | . . . Combat Hostiles . | . . . Parts Fried . | . . . Impact Corruptions . | . . . Robots Melted . | . . . Combat Hostiles . | . . . Parts Melted 5 | . 5 . Heat Transferred 1813 | . 1554 259 Parts Sabotaged . | . . . Parts Stolen . | . . . Parts Stripped . | . . . Power Chain Reactions . | . . . Alert | -11 -10 -10 ------- Run | Yrd Mat Sub Peak Influence 182 | . 182 . Initial . | . . . Average 68 | . 68 . Maximum Alert Level . | . . . Low Security (%) 100 | 100 100 . Level 1 . | . . . Level 2 . | . . . Level 3 . | . . . Level 4 . | . . . Level 5 . | . . . High Security . | . . . Max Security . | . . . Squads Dispatched 4 | . 4 . Investigation 1 | . 1 . Extermination . | . . . Reinforcement 3 | . 3 . Assault . | . . . Garrison . | . . . Intercept . | . . . Searches Triggered . | . . . Construction Impeded . | . . . Haulers Reinforced . | . . . Active Scanning Responses . | . . . Cargo Convoy Interrupts . | . . . Stealth | -11 -10 -10 --------- Run | Yrd Mat Sub Distress Signals . | . . . Communications Jammed . | . . . Distress Signals . | . . . Times Spotted 30 | . 21 9 Peak Tracking Total 7 | . 4 7 Tactical Retreats 2 | . 2 . Traps | -11 -10 -10 ------- Run | Yrd Mat Sub Traps Triggered 1 | . 1 . Indirectly . | . . . Trap Hack Attempts . | . . . Triggered . | . . . Disarmed 1 | . 1 . Reprogrammed . | . . . Reused . | . . . Traps Extracted . | . . . Installed . | . . . Triggered . | . . . Machines | -11 -10 -10 ---------- Run | Yrd Mat Sub Machines Disabled . | . . . Max in Single Turn . | . . . Machines Repaired . | . . . Machines Dismantled . | . . . Machines Sabotaged . | . . . Overloaded Fab Kills . | . . . Hacking | -11 -10 -10 --------- Run | Yrd Mat Sub Machines Accessed 5 | . 5 . Terminals 3 | . 3 . Fabricators . | . . . Repair Stations . | . . . Recycling Units 2 | . 2 . Scanalyzers . | . . . Garrison Access . | . . . Total Hacks 18 | . 18 . Successful 10 | . 10 . Failed 8 | . 8 . Catastrophic . | . . . Database Lockouts . | . . . Manual 8 | . 8 . Terminals 12 | . 12 . Fabricators . | . . . Repair Stations . | . . . Recycling Units 6 | . 6 . Scanalyzers . | . . . Garrison Access . | . . . Terminal Hacks 4 | . 4 . Emergency Access Points 1 | . 1 . Terminal Index 1 | . 1 . Locate Traps 1 | . 1 . Disarm Traps 1 | . 1 . Fabricator Hacks . | . . . Repair Station Hacks . | . . . Recycling Unit Hacks 1 | . 1 . Retrieve Components 1 | . 1 . Scanalyzer . | . . . Garrison Access Hacks . | . . . Unauthorized Hacks 5 | . 5 . Terminals 3 | . 3 . Assimilate 1 | . 1 . Botnet 1 | . 1 . Operators 1 | . 1 . Fabricators . | . . . Repair Stations . | . . . Recycling Units 2 | . 2 . Reject 2 | . 2 . Scanalyzers . | . . . Garrison Access . | . . . Data Cores Recovered . | . . . Used . | . . . Hacking Detections 4 | . 4 . Full Trace Events . | . . . Feedback Events . | . . . Feedback Blocked . | . . . Robot Schematics Acquired . | . . . Robots Built . | . . . Authchips . | . . . Time . | . . . Total Robot Build Rating . | . . . Part Schematics Acquired . | . . . Parts Built . | . . . Authchips . | . . . Time . | . . . Total Part Build Rating . | . . . Parts Repaired . | . . . Time . | . . . Parts Recycled . | . . . Recycled Matter . | . . . Retrieved Matter . | . . . Retrieved Components 1 | . 1 . Parts Scanalyzed . | . . . Part Schematics Acquired . | . . . Parts Damaged . | . . . Bothacking | -11 -10 -10 ------------ Run | Yrd Mat Sub Used RIF Installer . | . . . Robots Hacked . | . . . Non-combat . | . . . Combat . | . . . Robot Hacks Applied . | . . . Relay Couplers Released . | . . . Fabnet Peak Effective % . | . . . Robots Rewired . | . . . Allies Hacked . | . . . Hacks Repelled . | . . . Allies | -11 -10 -10 -------- Run | Yrd Mat Sub Total Allies . | . . . Largest Group . | . . . Highest-Rated Group . | . . . Highest-Rated Ally . | . . . Total Orders . | . . . Ally Attacks . | . . . Total Damage . | . . . Kills . | . . . Allies Corrupted . | . . . Allies Melted . | . . . Intel | -11 -10 -10 ------- Run | Yrd Mat Sub Robot Analysis Total . | . . . Derelict Logs Recovered . | . . . Drone Launches . | . . . Drone Recoveries . | . . . Exploration | -11 -10 -10 ------------- Run | Yrd Mat Sub Turns Passed 1237 | 3 1084 150 Spaces Moved 678 | 3 566 109 Core . | . . . Treads 2 | . 2 . Legs 597 | 3 564 30 Wheels 79 | . . 79 Hover . | . . . Flight . | . . . Fastest Speed 100 | 120 120 100 Average Speed 118 | 120 121 105 Slowest Speed 400 | 120 400 120 Overloaded Moves . | . . . Propulsion Burnouts . | . . . Robots Hopped . | . . . Cave-ins Triggered . | . . . Exploration Rate (%) 32 | 2 83 12 Regions Visited 2 Branch Regions 1 Pre-discovered Areas . | . . . Known Exits Taken 1 | . 1 . Unknown Exits Taken 1 | 1 . . Scrap Searched . | . . . Spaces Dug . | . . . Terrain Destroyed . | . . . Melee . | . . . Projectile . | . . . AOE . | . . . Terrain Rammed . | . . . Walls Destroyed . | . . . Machines Disabled . | . . . Actions | -11 -10 -10 --------- Run | Yrd Mat Sub Total 995 | 2 865 128 Wait 214 | . 214 . Move 676 | 2 565 109 Hop . | . . . Pick Up 10 | . 10 . Fast Attach 3 | . 3 . Attach 3 | . . 3 Detach . | . . . Swap 9 | . 9 . Drop 10 | . 10 . Fire 64 | . 51 13 Melee . | . . . Ram . | . . . Kick . | . . . Crush . | . . . Escape Stasis . | . . . Rewire 6 | . 3 3 Trap . | . . . Miscellaneous . | . . . Route ------- -11/Scrapyard -10/Materials (discovered 5 exits: *Mat x2 / *Min x2 / *Sub) -10/Subcaves (discovered 1 exit: [*Mat]) History --------- Turn | Location | Event 1 | -11/Scrapyard | Discovered new exit (range 3) 4 | -11/Scrapyard | Entered Materials 190 | -10/Materials | Discovered new exit (range 12) 257 | -10/Materials | Discovered new exit (range 12) 270 | -10/Materials | Identified exit to Mines 300 | -10/Materials | Build established: Mutant 311 | -10/Materials | Discovered new exit (range 3) 313 | -10/Materials | Identified exit to Materials 412 | -10/Materials | Discovered exit to Materials (range 16) 1081 | -10/Materials | Discovered new exit (range 5) 1087 | -10/Materials | Identified exit to Subcaves 1088 | -10/Materials | Entered Subcaves 1096 | -10/Subcaves | Discovered new exit (range 14) 1128 | -10/Subcaves | Core integrity fell below 50% 1137 | -10/Subcaves | A Subdweller sparked back to life 1137 | -10/Subcaves | A Subdweller sparked back to life 1137 | -10/Subcaves | A Subdweller sparked back to life 1179 | -10/Subcaves | Core integrity fell below 20% 1188 | -10/Subcaves | Lost 6 parts (1p2n3w) 1229 | -10/Subcaves | Disturbed a concealed Subdweller 1238 | -10/Subcaves | Destroyed by VS-3DD(R) with Subdweller Shrapnel Launcher Last Messages --------------- 01103_ 59-4I5(R) is broken beyond repair. 01104_ Attempting to rewire 59-4I5(R). 01104_ 59-4I5(R) is broken beyond repair. 01108_ Attempting to rewire F1-S23(R). 01108_ F1-S23(R) is broken beyond repair. 01115_ Assault Rifle destroyed. 01122_ O9-PWS(R) suffers critical hit (Burn). 01125_ Med. Laser destroyed. 01127_ O9-PWS(R) destroyed. 01137_ AE-B76(R) creaks and sparks as it begins to move. 01137_ F1-S23(R) creaks and sparks as it begins to move. 01137_ 59-4I5(R) creaks and sparks as it begins to move. 01138_ EM Pulse Gun destroyed. 01139_ Ion Engine destroyed. 01141_ Aluminum Leg destroyed. 01184_ S-10 Pest destroyed. 01232_ XT-XWJ(R): "SUBSUB!" Map ----- +----------------------------------------------------+ | | | | | | | | | ???????????????????????????????????????????????? | | ???????????????????????????????????????????????? | | ???????????????????????????????????????????????? | | ???????????????????????????????????????????????? | | ???????????????????????????????????????????????? | | ???????????????????????????????????????????????? | | ???????????????????????????????????????????????? | | ???????????????????????????????????????????????? | | ???????????????????????????????????????????????? | | ???????????????????????????????????????????????? | | ???????????????????????????????????????????????? | | ???????????????????????????##??????????????????? | | ???????????????????????????#"????????????????##? | | ???????????????????????????# ##???????????????"# | | ???????????????????????????? #####???????????? | | ????????????????????????????# "## ##??????????## | | ???????????????????????????## ## ##?????????#" | | ???????????????????????????#" " #????###### | | ??????????????????????????## ###### ## " | | ???????????????????####?### # | | ???????????????????#;; ## # | | ???????????????????#; @ | | ?????????????????# ; ##### # ## | | ?????????????????# #####??#### ###### | | ?????????????????# R?????#### # ### ## | | ?????????????????## #?????#"""" | | ??????????????????# ??????#""" | | ?????????????????? ???????#"""#### | | ?????????????????##"???????#""#???##### | | ??????????????????#????????# ????????##### | | ??????????????????????????# ?????????????# | | ??????????????????????????# ??????????????## | | ???????????????????????????????????????????## | | ????????????????????????????????????????????# # | | ????????????????????????????????????????????# # | | ???????????????????????????????????????????? | | ???????????????????????????????????????????? # | | ????????????????????????????????????????????? # | | ???????????????????????????????????????????????? | | ???????????????????????????????????????????????? | | ???????????????????????????????????????????????? | | ???????????????????????????????????????????????? | | ???????????????????????????????????????????????? | | ???????????????????????????????????????????????? | | ???????????????????????????????????????????????? | | ???????????????????????????????????????????????? | +----------------------------------------------------+ Best States ------------- Heat Dissipation 25 Energy Generation 10 Energy Capacity 250 Matter Stores 300 Matter Capacity 300 Sight Range 16 Terrain Scan Density 10 Evasion (%) 55 Recoil Reduction 2 Item Schematics ----------------- None Robot Schematics ------------------ None Fabricated ------------ Nothing Alien Tech Used ----------------- None Achievements -------------- None Challenges ------------ None Game ------ Seed SpacefoldWaveDetonator Manual? 0 Play Time 00:10:33 Cumulative 52.9 hours Start 2024.08.20 @ 16:26:53 End 2024.08.20 @ 16:36:05 Sessions 1 Manual Loads 0 Difficulty Rogue Special Mode None Game No. 77 Rogue 55 Adventurer 20 Explorer 2 Win Type - Total 0 Types 0/0/0/0/0/0/0/0/0 Lore% 38 Gallery% 37 Achievement% 37 Wizard Run 0 Options --------- Layout 1 ASCII 0 Keyboard 0 Movement Numpad Keybinds 0 Fullscreen 2 Font 24/Smallcaps Map View 50x35 Zoom Use 0% Tactical HUD 1 Map Filters NONE Filters NONE Steam 1 RUN: 6117b6bf-cd44-4429-85d8-a375f8dd5c4a